[Event "Late-Titled-Tuesday-Blitz-April-23-2024"]
[Site "Chess.com"]
[Date "2024.04.23"]
[Round "5"]
[White "Abund"]
[Black "scandalgod"]
[Result "0-1"]
[WhiteElo "2749"]
[BlackElo "2520"]
[TimeControl "180+1"]
[EndTime "14:58:10 PDT"]
[Termination "scandalgod won on time"]

1. e4 {[%clk 0:03:00.9]} 1... e5 {[%clk 0:02:55.2]} 2. Nc3 {[%clk 0:03:01.8]}
2... Nf6 {[%clk 0:02:54.9]} 3. Nf3 {[%clk 0:03:01.9]} 3... Nc6 {[%clk
0:02:54.7]} 4. Bb5 {[%clk 0:03:01.9]} 4... Bb4 {[%clk 0:02:54]} 5. O-O {[%clk
0:02:59.9]} 5... Bxc3 {[%clk 0:02:54.1]} 6. dxc3 {[%clk 0:02:55.2]} 6... d6
{[%clk 0:02:52.9]} 7. Bd3 {[%clk 0:02:53.2]} 7... O-O {[%clk 0:02:52.3]} 8. Nd2
{[%clk 0:02:49.6]} 8... Ne7 {[%clk 0:02:45.2]} 9. Re1 {[%clk 0:02:47.5]} 9...
Ng6 {[%clk 0:02:43.6]} 10. Nf1 {[%clk 0:02:47]} 10... h6 {[%clk 0:02:39.7]} 11.
Ng3 {[%clk 0:02:45.7]} 11... Be6 {[%clk 0:02:38]} 12. h3 {[%clk 0:02:42.6]}
12... Qd7 {[%clk 0:02:37.4]} 13. Qf3 {[%clk 0:02:42.2]} 13... Nh7 {[%clk
0:02:35.7]} 14. Nf5 {[%clk 0:02:41]} 14... Kh8 {[%clk 0:02:18.1]} 15. c4 {[%clk
0:02:35.7]} 15... b6 {[%clk 0:02:12.2]} 16. b3 {[%clk 0:02:33]} 16... a5 {[%clk
0:02:09.8]} 17. a4 {[%clk 0:02:27.5]} 17... Qd8 {[%clk 0:02:00.1]} 18. Qg3
{[%clk 0:02:12.3]} 18... Rg8 {[%clk 0:01:48.3]} 19. Be3 {[%clk 0:02:07.5]} 19...
Qf6 {[%clk 0:01:44.9]} 20. Rad1 {[%clk 0:02:05.2]} 20... Rae8 {[%clk 0:01:35.6]}
21. Rf1 {[%clk 0:02:03.1]} 21... Nf4 {[%clk 0:01:30.4]} 22. Nh4 {[%clk
0:00:47.3]} 22... Ng5 {[%clk 0:01:16.9]} 23. Kh1 {[%clk 0:00:40.7]} 23... g6
{[%clk 0:00:55.9]} 24. Rde1 {[%clk 0:00:29.2]} 24... Kh7 {[%clk 0:00:52.3]} 25.
Bd2 {[%clk 0:00:20.5]} 25... Bd7 {[%clk 0:00:40.2]} 26. Re3 {[%clk 0:00:20.5]}
26... Nh5 {[%clk 0:00:33.8]} 27. Qh2 {[%clk 0:00:20.2]} 27... Ne6 {[%clk
0:00:27.5]} 28. Nf3 {[%clk 0:00:19.5]} 28... Nef4 {[%clk 0:00:27.4]} 29. Ng1
{[%clk 0:00:15.3]} 29... g5 {[%clk 0:00:25.9]} 30. g4 {[%clk 0:00:10.6]} 30...
Ng7 {[%clk 0:00:23.4]} 31. Ne2 {[%clk 0:00:10.4]} 31... Nge6 {[%clk 0:00:23.1]}
32. Ng3 {[%clk 0:00:10.2]} 32... Nd4 {[%clk 0:00:15.8]} 33. f3 {[%clk
0:00:09.5]} 33... Kg7 {[%clk 0:00:13]} 34. Ree1 {[%clk 0:00:09.1]} 34... Kf8
{[%clk 0:00:12.6]} 35. Rf2 {[%clk 0:00:08]} 35... Rh8 {[%clk 0:00:12.8]} 36.
Bxf4 {[%clk 0:00:06.7]} 36... gxf4 {[%clk 0:00:12.5]} 37. Nh5 {[%clk 0:00:06.3]}
37... Qg6 {[%clk 0:00:12.4]} 38. Rg1 {[%clk 0:00:06.2]} 38... Ne6 {[%clk
0:00:11.7]} 39. Rff1 {[%clk 0:00:06]} 39... Ke7 {[%clk 0:00:11.6]} 40. Qf2
{[%clk 0:00:06.3]} 40... Reg8 {[%clk 0:00:11.4]} 41. Qh4+ {[%clk 0:00:06.7]}
41... Qg5 {[%clk 0:00:11.3]} 42. Qe1 {[%clk 0:00:06.8]} 42... f6 {[%clk
0:00:10.9]} 43. Kh2 {[%clk 0:00:06.9]} 43... Be8 {[%clk 0:00:11.2]} 44. h4
{[%clk 0:00:03.1]} 44... Qg6 {[%clk 0:00:11.1]} 45. c5 {[%clk 0:00:03.3]} 45...
bxc5 {[%clk 0:00:10.5]} 46. Bc4 {[%clk 0:00:03.5]} 46... Qh7 {[%clk 0:00:09.9]}
47. Qxa5 {[%clk 0:00:03.1]} 47... Bxh5 {[%clk 0:00:09.8]} 48. Bxe6 {[%clk
0:00:02.3]} 48... Kxe6 {[%clk 0:00:09.6]} 49. gxh5 {[%clk 0:00:02.9]} 49... Qf7
{[%clk 0:00:09.7]} 50. Qb5 {[%clk 0:00:02.5]} 50... Qxh5 {[%clk 0:00:08.2]} 51.
Qc4+ {[%clk 0:00:02.6]} 51... Ke7 {[%clk 0:00:08.4]} 52. Kh3 {[%clk 0:00:02.6]}
52... Qf7 {[%clk 0:00:06.4]} 53. Rg4 {[%clk 0:00:02.4]} 53... Rxg4 {[%clk
0:00:06.2]} 54. Kxg4 {[%clk 0:00:02.6]} 54... Qxc4 {[%clk 0:00:06.4]} 55. bxc4
{[%clk 0:00:02.7]} 55... Ke6 {[%clk 0:00:06.4]} 56. Kh5 {[%clk 0:00:02.8]} 56...
Ra8 {[%clk 0:00:05.3]} 57. Ra1 {[%clk 0:00:02.8]} 57... f5 {[%clk 0:00:05.7]}
58. exf5+ {[%clk 0:00:01.9]} 58... Kxf5 {[%clk 0:00:05.7]} 59. a5 {[%clk
0:00:02.6]} 59... c6 {[%clk 0:00:06]} 60. a6 {[%clk 0:00:03]} 60... d5 {[%clk
0:00:06.5]} 61. a7 {[%clk 0:00:02.8]} 61... e4 {[%clk 0:00:06.7]} 62. Kxh6
{[%clk 0:00:03.1]} 62... e3 {[%clk 0:00:06.5]} 63. Kg7 {[%clk 0:00:03.2]} 63...
d4 {[%clk 0:00:04.8]} 64. h5 {[%clk 0:00:03.5]} 64... e2 {[%clk 0:00:05.1]} 65.
h6 {[%clk 0:00:03.8]} 65... Rxa7+ {[%clk 0:00:05.6]} 66. Rxa7 {[%clk 0:00:03]}
66... e1=Q {[%clk 0:00:06]} 67. h7 {[%clk 0:00:03.4]} 67... Qe5+ {[%clk
0:00:06]} 68. Kh6 {[%clk 0:00:01.7]} 68... Qe6+ {[%clk 0:00:05.8]} 69. Kg7
{[%clk 0:00:01]} 69... Qg6+ {[%clk 0:00:05.7]} 0-1

[Event "Late-Titled-Tuesday-Blitz-April-23-2024"]
[Site "Chess.com"]
[Date "2024.04.23"]
[Round "5"]
[White "malakismayil"]
[Black "Road2GM3000"]
[Result "1-0"]
[WhiteElo "2587"]
[BlackElo "2444"]
[TimeControl "180+1"]
[EndTime "14:58:16 PDT"]
[Termination "malakismayil won by resignation"]

1. e4 {[%clk 0:02:55.7]} 1... c5 {[%clk 0:02:36.5]} 2. Nf3 {[%clk 0:02:54.7]}
2... d6 {[%clk 0:02:31.2]} 3. Bb5+ {[%clk 0:02:54.8]} 3... Bd7 {[%clk
0:02:31.4]} 4. Bxd7+ {[%clk 0:02:54.7]} 4... Nxd7 {[%clk 0:02:32.3]} 5. O-O
{[%clk 0:02:54.7]} 5... Ngf6 {[%clk 0:02:33]} 6. Re1 {[%clk 0:02:55.1]} 6... e6
{[%clk 0:02:33.7]} 7. d4 {[%clk 0:02:55.4]} 7... cxd4 {[%clk 0:02:34.1]} 8. Nxd4
{[%clk 0:02:56.3]} 8... Be7 {[%clk 0:02:34.9]} 9. c4 {[%clk 0:02:56.5]} 9... O-O
{[%clk 0:02:35.7]} 10. b3 {[%clk 0:02:57]} 10... Rc8 {[%clk 0:02:36.4]} 11. Bb2
{[%clk 0:02:57.7]} 11... Qc7 {[%clk 0:02:36.1]} 12. Nc3 {[%clk 0:02:57.8]} 12...
a6 {[%clk 0:02:36.4]} 13. Rc1 {[%clk 0:02:57.3]} 13... Rfd8 {[%clk 0:02:37.1]}
14. Qd2 {[%clk 0:02:55.2]} 14... Nf8 {[%clk 0:02:37.7]} 15. h3 {[%clk
0:02:53.1]} 15... Qb8 {[%clk 0:02:38.4]} 16. f4 {[%clk 0:02:36.2]} 16... h6
{[%clk 0:02:38.6]} 17. f5 {[%clk 0:02:36.1]} 17... d5 {[%clk 0:02:35.4]} 18.
exd5 {[%clk 0:02:22]} 18... Bc5 {[%clk 0:02:35.3]} 19. fxe6 {[%clk 0:02:10.1]}
19... Nxe6 {[%clk 0:02:34.8]} 20. Rxe6 {[%clk 0:02:02.4]} 20... fxe6 {[%clk
0:02:34.2]} 21. b4 {[%clk 0:02:02.8]} 21... Bxd4+ {[%clk 0:02:30.5]} 22. Qxd4
{[%clk 0:02:03.7]} 22... exd5 {[%clk 0:02:31.1]} 23. Nxd5 {[%clk 0:02:02.9]}
23... Rxd5 {[%clk 0:02:11.3]} 24. cxd5 {[%clk 0:01:59.3]} 24... Rxc1+ {[%clk
0:02:12.2]} 25. Bxc1 {[%clk 0:01:59.4]} 25... Qd6 {[%clk 0:02:13.1]} 26. Bb2
{[%clk 0:01:31.9]} 26... Qxd5 {[%clk 0:02:12.9]} 27. a3 {[%clk 0:01:32.4]} 27...
Qxd4+ {[%clk 0:02:07.5]} 28. Bxd4 {[%clk 0:01:33.3]} 28... Ne4 {[%clk
0:02:06.8]} 29. Kf1 {[%clk 0:01:25.9]} 29... Kf7 {[%clk 0:02:01.2]} 30. Ke2
{[%clk 0:01:26.4]} 30... g6 {[%clk 0:02:01.5]} 31. Kd3 {[%clk 0:01:23]} 31...
Nd6 {[%clk 0:02:00.2]} 32. g4 {[%clk 0:01:19.6]} 32... Ke6 {[%clk 0:01:58.3]}
33. a4 {[%clk 0:01:14.6]} 33... Kd5 {[%clk 0:01:58]} 34. Be3 {[%clk 0:00:59.6]}
34... h5 {[%clk 0:01:57.2]} 35. Bf4 {[%clk 0:00:57.4]} 35... Ne4 {[%clk
0:01:43.4]} 36. gxh5 {[%clk 0:00:44.9]} 36... gxh5 {[%clk 0:01:32.5]} 37. Be3
{[%clk 0:00:45]} 37... Nd6 {[%clk 0:01:25.2]} 38. Bc5 {[%clk 0:00:39.4]} 38...
Nc4 {[%clk 0:01:25.1]} 39. Kc3 {[%clk 0:00:34]} 39... Ne5 {[%clk 0:01:21.1]} 40.
Bf2 {[%clk 0:00:30.1]} 40... Ke4 {[%clk 0:01:16.6]} 41. b5 {[%clk 0:00:29.8]}
41... axb5 {[%clk 0:01:08.3]} 42. axb5 {[%clk 0:00:30.7]} 42... Kd5 {[%clk
0:01:05.9]} 43. Bg3 {[%clk 0:00:25.9]} 43... Nf3 {[%clk 0:01:03.4]} 44. Kb4
{[%clk 0:00:23.6]} 44... Ng5 {[%clk 0:01:01.6]} 45. h4 {[%clk 0:00:23.6]} 45...
Ne4 {[%clk 0:00:58.2]} 46. Bf4 {[%clk 0:00:24]} 46... Nc5 {[%clk 0:00:41.9]} 47.
Ka5 {[%clk 0:00:13.4]} 47... Nd7 {[%clk 0:00:42.2]} 48. Be3 {[%clk 0:00:08.5]}
48... Kc4 {[%clk 0:00:41.3]} 49. Bf2 {[%clk 0:00:06.2]} 49... Kd5 {[%clk
0:00:24.8]} 50. Bg1 {[%clk 0:00:04.3]} 50... Kd6 {[%clk 0:00:20.9]} 51. Bh2+
{[%clk 0:00:04.1]} 51... Ke6 {[%clk 0:00:20.5]} 52. Bf4 {[%clk 0:00:04]} 52...
Kf5 {[%clk 0:00:20.7]} 53. Bg5 {[%clk 0:00:04.4]} 53... Kg4 {[%clk 0:00:20.6]}
54. Bd8 {[%clk 0:00:03.4]} 54... Kf5 {[%clk 0:00:15.6]} 55. Be7 {[%clk
0:00:03.6]} 55... Ke6 {[%clk 0:00:15.5]} 56. Bg5 {[%clk 0:00:04.3]} 56... Kd5
{[%clk 0:00:15.8]} 57. Be7 {[%clk 0:00:04.3]} 57... Ke6 {[%clk 0:00:15.4]} 58.
Bg5 {[%clk 0:00:04.6]} 58... Kf7 {[%clk 0:00:15.8]} 59. Bf4 {[%clk 0:00:04.8]}
59... Ke8 {[%clk 0:00:16.4]} 60. Kb4 {[%clk 0:00:04]} 60... Ke7 {[%clk
0:00:15.5]} 61. Kc4 {[%clk 0:00:04]} 61... Ke6 {[%clk 0:00:15.6]} 62. Bg5 {[%clk
0:00:04.5]} 62... Ne5+ {[%clk 0:00:13.8]} 63. Kc5 {[%clk 0:00:04.5]} 63... Nd7+
{[%clk 0:00:13.6]} 64. Kc4 {[%clk 0:00:04.8]} 64... b6 {[%clk 0:00:11.2]} 65.
Be3 {[%clk 0:00:04]} 65... Kd6 {[%clk 0:00:11.7]} 66. Bf4+ {[%clk 0:00:04.1]}
66... Ke6 {[%clk 0:00:11.7]} 67. Kd4 {[%clk 0:00:04.2]} 67... Nf6 {[%clk
0:00:10.1]} 68. Bc7 {[%clk 0:00:04]} 68... Nd5 {[%clk 0:00:10.2]} 69. Bd8 {[%clk
0:00:04.2]} 69... Kd6 {[%clk 0:00:09.6]} 70. Bg5 {[%clk 0:00:04.3]} 70... Ke6
{[%clk 0:00:05.9]} 71. Bd8 {[%clk 0:00:03.8]} 71... Kd6 {[%clk 0:00:05.1]} 72.
Bg5 {[%clk 0:00:04.5]} 72... Ke6 {[%clk 0:00:03.9]} 73. Bd2 {[%clk 0:00:05.2]}
73... Kd6 {[%clk 0:00:01.3]} 74. Bc1 {[%clk 0:00:05]} 74... Ne7 {[%clk
0:00:01.3]} 75. Ba3+ {[%clk 0:00:04.6]} 75... Kd7 {[%clk 0:00:01.9]} 76. Bxe7
{[%clk 0:00:05.4]} 76... Kxe7 {[%clk 0:00:02.8]} 77. Ke5 {[%clk 0:00:04.9]}
77... Kd7 {[%clk 0:00:03.1]} 78. Kd5 {[%clk 0:00:05.6]} 78... Ke7 {[%clk
0:00:03.2]} 79. Kc6 {[%clk 0:00:06.1]} 79... Ke6 {[%clk 0:00:03.7]} 80. Kxb6
{[%clk 0:00:06.8]} 80... Kf5 {[%clk 0:00:04.6]} 81. Ka7 {[%clk 0:00:07]} 81...
Kg4 {[%clk 0:00:05.5]} 1-0

[Event "Late-Titled-Tuesday-Blitz-April-23-2024"]
[Site "Chess.com"]
[Date "2024.04.23"]
[Round "5"]
[White "RobertJFischer71"]
[Black "Byniolus"]
[Result "0-1"]
[WhiteElo "2606"]
[BlackElo "2808"]
[TimeControl "180+1"]
[EndTime "14:58:20 PDT"]
[Termination "Byniolus won by resignation"]

1. e4 {[%clk 0:03:00.9]} 1... d6 {[%clk 0:03:00.1]} 2. d4 {[%clk 0:03:00.2]}
2... Nf6 {[%clk 0:03:00.6]} 3. Nc3 {[%clk 0:02:59.1]} 3... c6 {[%clk 0:03:00.7]}
4. a4 {[%clk 0:02:58.3]} 4... a5 {[%clk 0:02:59.5]} 5. Nf3 {[%clk 0:02:57.4]}
5... Bg4 {[%clk 0:02:59.6]} 6. Be3 {[%clk 0:02:56.5]} 6... e6 {[%clk 0:02:59.8]}
7. h3 {[%clk 0:02:55.2]} 7... Bh5 {[%clk 0:02:59.8]} 8. Be2 {[%clk 0:02:50.9]}
8... d5 {[%clk 0:02:58.9]} 9. e5 {[%clk 0:02:44.8]} 9... Nfd7 {[%clk 0:02:58.6]}
10. Nd2 {[%clk 0:02:33.3]} 10... Bg6 {[%clk 0:02:54.9]} 11. f4 {[%clk
0:02:31.4]} 11... c5 {[%clk 0:02:52.4]} 12. Nf3 {[%clk 0:02:31.8]} 12... Nc6
{[%clk 0:02:49.5]} 13. Nb5 {[%clk 0:02:30.4]} 13... Be7 {[%clk 0:02:44.1]} 14.
c3 {[%clk 0:02:26.1]} 14... O-O {[%clk 0:02:43.1]} 15. O-O {[%clk 0:02:25.9]}
15... Rc8 {[%clk 0:02:40.1]} 16. Kh2 {[%clk 0:02:16]} 16... h6 {[%clk
0:02:38.8]} 17. g4 {[%clk 0:02:09.2]} 17... Be4 {[%clk 0:02:34.2]} 18. Bd3
{[%clk 0:02:05.3]} 18... cxd4 {[%clk 0:02:21.2]} 19. Nfxd4 {[%clk 0:01:53.3]}
19... Nc5 {[%clk 0:02:03.5]} 20. Nxc6 {[%clk 0:01:52.6]} 20... bxc6 {[%clk
0:02:01.5]} 21. Bxc5 {[%clk 0:01:52.8]} 21... Bxc5 {[%clk 0:01:49.9]} 22. Bxe4
{[%clk 0:01:49]} 22... dxe4 {[%clk 0:01:45.1]} 23. Nd6 {[%clk 0:01:30.1]} 23...
Rb8 {[%clk 0:01:37.3]} 24. Nc4 {[%clk 0:01:26.6]} 24... Qd5 {[%clk 0:01:37.4]}
25. Qe2 {[%clk 0:01:24]} 25... Be7 {[%clk 0:01:11.9]} 26. Rad1 {[%clk 0:01:20]}
26... Qc5 {[%clk 0:01:11.9]} 27. Qxe4 {[%clk 0:01:13.5]} 27... Rfd8 {[%clk
0:01:12.2]} 28. Rxd8+ {[%clk 0:00:59]} 28... Rxd8 {[%clk 0:01:13.1]} 29. Kg3
{[%clk 0:00:57.9]} 29... Rb8 {[%clk 0:00:52.8]} 30. Rd1 {[%clk 0:00:36.6]} 30...
Bh4+ {[%clk 0:00:51.9]} 31. Kg2 {[%clk 0:00:20.4]} 31... Qf2+ {[%clk 0:00:52.8]}
32. Kh1 {[%clk 0:00:20.5]} 32... Bg3 {[%clk 0:00:49.6]} 33. Qg2 {[%clk
0:00:16.7]} 33... Qxf4 {[%clk 0:00:49.5]} 34. Rd4 {[%clk 0:00:12.5]} 34... Qc1+
{[%clk 0:00:22.2]} 35. Qg1 {[%clk 0:00:12.9]} 35... Be1 {[%clk 0:00:15.8]} 36.
Re4 {[%clk 0:00:12.4]} 36... Bd2 {[%clk 0:00:13.5]} 37. Qxc1 {[%clk 0:00:12.4]}
37... Bxc1 {[%clk 0:00:14.4]} 38. Re2 {[%clk 0:00:12.3]} 38... Ra8 {[%clk
0:00:09.1]} 39. Re1 {[%clk 0:00:11.1]} 39... Bf4 {[%clk 0:00:08.5]} 40. Rd1
{[%clk 0:00:11.2]} 40... g5 {[%clk 0:00:07.6]} 41. Kg2 {[%clk 0:00:11]} 41...
Kg7 {[%clk 0:00:07.7]} 42. Kf3 {[%clk 0:00:11.6]} 42... Kg6 {[%clk 0:00:07.6]}
43. Ke4 {[%clk 0:00:11.1]} 43... h5 {[%clk 0:00:07.9]} 44. Rd6 {[%clk
0:00:09.5]} 44... hxg4 {[%clk 0:00:07.8]} 45. hxg4 {[%clk 0:00:10.4]} 45... Rh8
{[%clk 0:00:04.2]} 46. Nxa5 {[%clk 0:00:10.7]} 46... c5 {[%clk 0:00:02.4]} 47.
Nc6 {[%clk 0:00:09.4]} 47... Rh4 {[%clk 0:00:03.3]} 48. Ne7+ {[%clk 0:00:09.6]}
48... Kg7 {[%clk 0:00:03.6]} 49. a5 {[%clk 0:00:07.5]} 49... Rxg4 {[%clk
0:00:04]} 50. a6 {[%clk 0:00:07.5]} 50... Bc1+ {[%clk 0:00:02.2]} 51. Kd3 {[%clk
0:00:07.9]} 51... Ra4 {[%clk 0:00:02.3]} 52. Kc2 {[%clk 0:00:07.4]} 52... Bf4
{[%clk 0:00:02.4]} 53. Rb6 {[%clk 0:00:07.1]} 53... g4 {[%clk 0:00:02]} 54. Kb3
{[%clk 0:00:05.5]} 54... Ra5 {[%clk 0:00:02]} 55. Rb8 {[%clk 0:00:04.4]} 55...
Rxa6 {[%clk 0:00:01.5]} 56. Rg8+ {[%clk 0:00:04.7]} 56... Kh7 {[%clk 0:00:02.2]}
57. Rxg4 {[%clk 0:00:05.5]} 57... Bxe5 {[%clk 0:00:03.1]} 58. Nc8 {[%clk
0:00:03.8]} 58... f5 {[%clk 0:00:02.7]} 59. Rc4 {[%clk 0:00:03.2]} 59... Rc6
{[%clk 0:00:02.2]} 60. Na7 {[%clk 0:00:03.2]} 60... Rb6+ {[%clk 0:00:02.3]} 61.
Ka4 {[%clk 0:00:02.9]} 61... Bd6 {[%clk 0:00:02.8]} 62. Nb5 {[%clk 0:00:02.9]}
62... Be7 {[%clk 0:00:02.8]} 63. b4 {[%clk 0:00:03.4]} 63... cxb4 {[%clk
0:00:02.9]} 64. Rc7 {[%clk 0:00:03.7]} 64... Kg6 {[%clk 0:00:02.4]} 65. Rxe7
{[%clk 0:00:03.7]} 65... bxc3 {[%clk 0:00:03.2]} 66. Nxc3 {[%clk 0:00:03.9]}
66... Kf6 {[%clk 0:00:02.8]} 67. Rc7 {[%clk 0:00:04]} 67... f4 {[%clk
0:00:02.6]} 68. Nb5 {[%clk 0:00:04]} 68... Kf5 {[%clk 0:00:02.4]} 69. Rc5+
{[%clk 0:00:04.1]} 69... Kg4 {[%clk 0:00:02.6]} 70. Kb4 {[%clk 0:00:03.5]} 70...
f3 {[%clk 0:00:02.3]} 71. Rc2 {[%clk 0:00:03.7]} 71... Kg3 {[%clk 0:00:02]} 72.
Rc5 {[%clk 0:00:01]} 72... f2 {[%clk 0:00:01.5]} 73. Rc1 {[%clk 0:00:01.7]}
73... Kg2 {[%clk 0:00:01.5]} 74. Kc4 {[%clk 0:00:02.6]} 74... Rc6+ {[%clk
0:00:01.3]} 75. Kd4 {[%clk 0:00:03]} 75... Rxc1 {[%clk 0:00:02.2]} 0-1

[Event "Late-Titled-Tuesday-Blitz-April-23-2024"]
[Site "Chess.com"]
[Date "2024.04.23"]
[Round "6"]
[White "ACollins05"]
[Black "GoltsevDmitry2000"]
[Result "0-1"]
[WhiteElo "2533"]
[BlackElo "2756"]
[TimeControl "180+1"]
[EndTime "15:02:16 PDT"]
[Termination "GoltsevDmitry2000 won by resignation"]

1. Nf3 {[%clk 0:03:00.9]} 1... d5 {[%clk 0:02:59.9]} 2. e3 {[%clk 0:03:00.3]}
2... c6 {[%clk 0:03:00.2]} 3. b3 {[%clk 0:02:59.5]} 3... Nf6 {[%clk 0:03:01.1]}
4. Bb2 {[%clk 0:02:59.5]} 4... g6 {[%clk 0:03:02]} 5. d4 {[%clk 0:02:59.1]} 5...
Bg7 {[%clk 0:03:02.2]} 6. c4 {[%clk 0:02:59.7]} 6... O-O {[%clk 0:03:03.1]} 7.
Nc3 {[%clk 0:03:00]} 7... Nbd7 {[%clk 0:03:03.5]} 8. Be2 {[%clk 0:03:00.4]} 8...
Ne4 {[%clk 0:03:02.9]} 9. Nxe4 {[%clk 0:02:58.7]} 9... dxe4 {[%clk 0:03:03.1]}
10. Nd2 {[%clk 0:02:59.4]} 10... f5 {[%clk 0:03:03.1]} 11. O-O {[%clk
0:02:58.8]} 11... e5 {[%clk 0:03:03.5]} 12. f3 {[%clk 0:02:50.3]} 12... Bh6
{[%clk 0:02:58.5]} 13. Kf2 {[%clk 0:02:43.1]} 13... Qh4+ {[%clk 0:02:47]} 14.
Kg1 {[%clk 0:02:43.1]} 14... Bxe3+ {[%clk 0:02:46.7]} 15. Kh1 {[%clk 0:02:43.7]}
15... Bf4 {[%clk 0:02:47]} 16. g3 {[%clk 0:02:40]} 16... Bxg3 {[%clk 0:02:46.2]}
0-1

[Event "Late-Titled-Tuesday-Blitz-April-23-2024"]
[Site "Chess.com"]
[Date "2024.04.23"]
[Round "6"]
[White "Bala-Afiada"]
[Black "Kavyev_Ruslan"]
[Result "0-1"]
[WhiteElo "1973"]
[BlackElo "2373"]
[TimeControl "180+1"]
[EndTime "15:03:25 PDT"]
[Termination "Kavyev_Ruslan won by resignation"]

1. d4 {[%clk 0:03:00.9]} 1... d6 {[%clk 0:02:58.6]} 2. c4 {[%clk 0:03:00.8]}
2... e5 {[%clk 0:02:59]} 3. e3 {[%clk 0:03:00.7]} 3... Nd7 {[%clk 0:02:55.2]} 4.
Nc3 {[%clk 0:03:00.9]} 4... Ngf6 {[%clk 0:02:54.1]} 5. Bd3 {[%clk 0:02:59.7]}
5... g6 {[%clk 0:02:54.2]} 6. Nf3 {[%clk 0:02:59.9]} 6... Bg7 {[%clk 0:02:54.5]}
7. O-O {[%clk 0:02:59.9]} 7... O-O {[%clk 0:02:54.3]} 8. Qc2 {[%clk 0:02:54.9]}
8... c6 {[%clk 0:02:51.2]} 9. dxe5 {[%clk 0:02:54.3]} 9... dxe5 {[%clk
0:02:50.9]} 10. Rd1 {[%clk 0:02:49.5]} 10... Qc7 {[%clk 0:02:50.9]} 11. Ng5
{[%clk 0:02:34.6]} 11... Nc5 {[%clk 0:02:48.9]} 12. Be2 {[%clk 0:02:29.1]} 12...
h6 {[%clk 0:02:48.5]} 13. Nge4 {[%clk 0:02:28.4]} 13... Nfxe4 {[%clk 0:02:44.5]}
14. Nxe4 {[%clk 0:02:29.3]} 14... Bf5 {[%clk 0:02:35.3]} 15. Bf3 {[%clk
0:02:14.8]} 15... Rad8 {[%clk 0:02:29.7]} 16. Rxd8 {[%clk 0:02:13.1]} 16... Rxd8
{[%clk 0:02:29]} 17. b4 {[%clk 0:02:00.4]} 17... Nxe4 {[%clk 0:02:27.6]} 18.
Bxe4 {[%clk 0:02:00.5]} 18... Bxe4 {[%clk 0:02:27.9]} 0-1

[Event "Late-Titled-Tuesday-Blitz-April-23-2024"]
[Site "Chess.com"]
[Date "2024.04.23"]
[Round "6"]
[White "Stanbad1"]
[Black "TheAlienParty"]
[Result "0-1"]
[WhiteElo "2594"]
[BlackElo "2434"]
[TimeControl "180+1"]
[EndTime "15:04:03 PDT"]
[Termination "TheAlienParty won by checkmate"]

1. d4 {[%clk 0:03:00.9]} 1... Nf6 {[%clk 0:02:58.7]} 2. Nc3 {[%clk 0:03:00.9]}
2... d5 {[%clk 0:02:57.7]} 3. Bf4 {[%clk 0:03:00]} 3... c6 {[%clk 0:02:56.5]} 4.
e3 {[%clk 0:03:00.2]} 4... Bf5 {[%clk 0:02:55.9]} 5. f3 {[%clk 0:03:00.2]} 5...
e6 {[%clk 0:02:53.9]} 6. g4 {[%clk 0:03:00.4]} 6... Bg6 {[%clk 0:02:53.1]} 7. h4
{[%clk 0:03:00.6]} 7... h5 {[%clk 0:02:52.5]} 8. g5 {[%clk 0:03:00.6]} 8... Nfd7
{[%clk 0:02:52.2]} 9. Bd3 {[%clk 0:03:00.9]} 9... Bxd3 {[%clk 0:02:50.5]} 10.
Qxd3 {[%clk 0:03:01.3]} 10... g6 {[%clk 0:02:50.6]} 11. Nge2 {[%clk 0:03:00.8]}
11... Bg7 {[%clk 0:02:50.5]} 12. O-O-O {[%clk 0:03:00.4]} 12... a5 {[%clk
0:02:48.1]} 13. e4 {[%clk 0:03:00]} 13... a4 {[%clk 0:02:47.6]} 14. a3 {[%clk
0:02:59.8]} 14... Qa5 {[%clk 0:02:46.6]} 15. Bd6 {[%clk 0:02:59.3]} 15... Nb6
{[%clk 0:02:41.7]} 16. exd5 {[%clk 0:02:57.1]} 16... cxd5 {[%clk 0:02:38.6]} 17.
Nb5 {[%clk 0:02:51.9]} 17... Na6 {[%clk 0:02:37.9]} 18. Nf4 {[%clk 0:02:48.8]}
18... Nc4 {[%clk 0:02:36.8]} 19. Nxe6 {[%clk 0:02:44.2]} 19... Qxb5 {[%clk
0:02:29.6]} 20. Nxg7+ {[%clk 0:02:44.3]} 20... Kd7 {[%clk 0:02:29.1]} 21. Bb4
{[%clk 0:02:41.7]} 21... Nxb4 {[%clk 0:02:28.9]} 22. axb4 {[%clk 0:02:42.2]}
22... Qxb4 {[%clk 0:02:28.9]} 23. Rde1 {[%clk 0:02:36.4]} 23... Qxb2+ {[%clk
0:02:09.4]} 24. Kd1 {[%clk 0:02:36.3]} 24... Rhg8 {[%clk 0:02:00.6]} 25. Nxh5
{[%clk 0:02:33.5]} 25... gxh5 {[%clk 0:01:58.9]} 26. Qf5+ {[%clk 0:02:33.4]}
26... Kc6 {[%clk 0:01:56.7]} 27. Re7 {[%clk 0:02:28.6]} 27... Qxd4+ {[%clk
0:01:49.5]} 28. Kc1 {[%clk 0:02:18.5]} 28... Qa1# {[%clk 0:01:48.7]} 0-1

[Event "Late-Titled-Tuesday-Blitz-April-23-2024"]
[Site "Chess.com"]
[Date "2024.04.23"]
[Round "6"]
[White "juancruzarias"]
[Black "mortngabriel"]
[Result "1/2-1/2"]
[WhiteElo "2638"]
[BlackElo "2459"]
[TimeControl "180+1"]
[EndTime "15:04:29 PDT"]
[Termination "Game drawn by repetition"]

1. d4 {[%clk 0:03:00.9]} 1... Nf6 {[%clk 0:03:00.1]} 2. c4 {[%clk 0:03:01.1]}
2... e6 {[%clk 0:03:00.5]} 3. g3 {[%clk 0:03:00.8]} 3... d5 {[%clk 0:03:00.5]}
4. Bg2 {[%clk 0:03:00.9]} 4... Be7 {[%clk 0:03:00.7]} 5. Nf3 {[%clk 0:03:01.3]}
5... O-O {[%clk 0:03:01.4]} 6. O-O {[%clk 0:03:01.4]} 6... dxc4 {[%clk
0:03:02.1]} 7. Qc2 {[%clk 0:03:00.2]} 7... b5 {[%clk 0:03:02.1]} 8. a4 {[%clk
0:02:58.7]} 8... b4 {[%clk 0:03:02.3]} 9. Nfd2 {[%clk 0:02:57.6]} 9... Nd5
{[%clk 0:03:02.2]} 10. Nxc4 {[%clk 0:02:55.3]} 10... c5 {[%clk 0:03:02.3]} 11.
dxc5 {[%clk 0:02:52.8]} 11... Bxc5 {[%clk 0:03:03.2]} 12. e4 {[%clk 0:02:51]}
12... Nb6 {[%clk 0:03:03]} 13. Nxb6 {[%clk 0:02:38.2]} 13... axb6 {[%clk
0:03:02.8]} 14. Nd2 {[%clk 0:02:33.4]} 14... Ba6 {[%clk 0:02:57.2]} 15. Rd1
{[%clk 0:02:32.1]} 15... Be2 {[%clk 0:02:11.5]} 16. Re1 {[%clk 0:02:31.1]} 16...
Bd3 {[%clk 0:02:11.4]} 17. Qd1 {[%clk 0:02:19.6]} 17... Nc6 {[%clk 0:02:07.2]}
18. Nf3 {[%clk 0:02:13.8]} 18... Bc4 {[%clk 0:01:50.6]} 19. Qc2 {[%clk
0:01:59.6]} 19... Bd3 {[%clk 0:01:45]} 20. Qd1 {[%clk 0:01:59]} 20... Bc4 {[%clk
0:01:44.9]} 21. Qc2 {[%clk 0:01:47.6]} 21... Bd3 {[%clk 0:01:44.7]} 22. Qd1
{[%clk 0:01:40]} 1/2-1/2